bitfinex/quotes_ETHUSD_20240601
["timestamp","ask_amount","ask_price","bid_price","bid_amount"]
[1717200388106,3.0,3766.9,3766.0,2.65531]
[1717200388292,0.643,3766.6,3766.0,2.65531]
[1717200388508,0.643,3766.6,3766.0,2.96117647]
[1717200391805,0.643,3766.4,3766.0,2.96117647]
[1717200391972,3.0,3766.9,3766.0,2.96117647]
[1717200392177,0.643,3766.4,3766.0,2.65531]
[1717200395400,3.0,3766.9,3766.0,6.59821]
[1717200395653,0.643,3766.8,3766.0,6.59821]
[1717200397783,0.643,3766.8,3766.1,0.2659]
[1717200398114,0.643,3767.0,3766.3,0.2659]
[1717200398426,0.643,3767.0,3766.4,2.947146]
[1717200398781,0.643,3767.1,3766.4,2.947146]
[1717200399699,7.43,3767.2,3766.4,2.947146]
[1717200399891,7.43,3767.2,3766.8,0.2659]
[1717200400994,0.643,3767.4,3766.8,0.2659]
[1717200401509,0.643,3767.4,3766.8,0.927502]
[1717200406439,0.643,3767.4,3766.8,0.2659]
[1717200412071,3.0,3767.6,3766.9,2.65469]
[1717200412213,3.643,3767.6,3766.9,2.65469]
[1717200412412,7.43,3767.7,3766.9,2.65469]
[1717200412614,0.643,3767.6,3766.9,2.65469]
[1717200414487,7.43,3767.7,3766.9,2.65469]
[1717200414691,8.073,3767.7,3766.9,3.380579]
[1717200419497,7.43,3767.7,3766.9,3.380579]
[1717200422038,7.43,3767.7,3766.9,0.725889]
[1717200422291,7.43,3767.7,3767.6,3.7526]
[1717200422419,7.43,3768.1,3767.7,2.6541]
[1717200430356,4.0057,3768.0,3767.0,4.0185]
[1717200430495,0.643,3767.6,3767.0,4.0185]
[1717200430701,0.643,3767.6,3767.0,4.42035]
[1717200431231,0.643,3767.6,3767.1,2.65454]
[1717200431420,0.643,3767.8,3767.1,2.92044]
[1717200431949,0.643,3768.0,3767.1,3.692229]
[1717200432732,7.43,3768.1,3767.1,3.692229]
[1717200432927,0.643,3768.0,3767.1,3.692229]
[1717200433126,7.43,3768.1,3767.1,3.692229]
[1717200433399,7.43,3768.1,3767.5,3.7526]
[1717200433843,7.43,3768.1,3767.6,2.6542]
[1717200436220,7.43,3768.1,3767.9,2.65392]
[1717200436427,7.43,3768.1,3768.0,3.7526]
[1717200439154,12.24,3768.7,3768.1,2.65384]
[1717200439449,7.43,3768.8,3768.1,2.65384]
[1717200439659,0.643,3768.7,3768.1,3.294484]
[1717200441123,0.643,3768.5,3768.1,3.294484]
[1717200441335,0.643,3768.5,3768.1,2.65384]
[1717200442647,7.43,3768.8,3768.1,2.65384]
[1717200442859,0.643,3768.5,3768.1,2.65384]
[1717200445401,0.643,3768.7,3768.1,2.65384]
[1717200446214,7.43,3768.8,3768.1,2.65384]
[1717200446215,7.43,3768.8,3768.1,0.640644]
[1717200446421,7.43,3768.8,3768.7,0.643]
[1717200446730,7.43,3768.8,3768.6,4.0762]
[1717200448011,7.43,3768.8,3768.7,2.65343]
[1717200448177,7.43,3768.8,3768.3,0.2656]
[1717200448505,7.43,3768.8,3768.2,6.46402]
[1717200448673,7.43,3768.8,3768.7,2.65343]
[1717200449338,7.43,3768.8,3768.7,2.91903]
[1717200449492,7.43,3768.8,3768.7,3.275233]
[1717200449702,7.43,3768.8,3768.7,7.728533]
[1717200450786,12.24,3769.5,3768.7,7.728533]
[1717200450787,19.67,3769.5,3768.7,7.728533]
[1717200451038,7.43,3769.5,3768.7,7.728533]
[1717200451241,7.43,3769.5,3768.9,2.65328]
[1717200452696,8.073,3769.5,3768.9,2.65328]
[1717200453555,0.643,3769.0,3767.6,3.8103]
[1717200453846,0.643,3769.0,3767.9,0.643]
[1717200454045,0.643,3769.0,3768.1,0.643]
[1717200454654,0.643,3769.0,3768.2,0.2656]
[1717200454856,0.643,3769.0,3768.3,4.0759]
[1717200455026,7.43,3769.1,3768.3,4.0759]
[1717200455358,0.643,3769.0,3768.3,4.0759]
[1717200456423,7.43,3769.1,3768.6,0.2656]
[1717200456623,0.643,3769.2,3768.5,2.65356]
[1717200457238,0.643,3769.0,3768.5,2.65356]
[1717200458209,0.643,3769.0,3768.1,2.91942]
[1717200458409,0.643,3768.8,3768.1,2.65382]
[1717200459485,0.643,3768.9,3768.2,0.2656]
[1717200460252,3.8774,3769.1,3768.3,2.6537]
[1717200460453,4.5204,3769.1,3768.3,2.6537]
[1717200460771,0.643,3769.1,3768.3,2.6537]
[1717200461747,0.643,3768.9,3768.3,2.6537]
[1717200462865,3.8774,3768.8,3767.9,2.91956]
[1717200463102,0.643,3768.7,3767.9,2.91956]
[1717200463409,0.643,3768.7,3767.9,3.648816]
[1717200463752,0.643,3768.7,3768.0,0.2656]
[1717200467781,0.643,3768.1,3767.4,6.3843]
[1717200467987,0.643,3768.1,3767.4,7.02273]
[1717200468181,0.643,3768.1,3767.4,6.3843]
[1717200468618,0.643,3768.1,3767.5,0.2656]
[1717200468816,0.643,3768.1,3767.0,0.643]
[1717200468817,0.643,3767.9,3767.1,3.73]
[1717200469002,0.643,3767.6,3767.1,3.73]
[1717200469206,0.643,3767.6,3767.0,2.65459]
[1717200469761,0.643,3767.6,3767.1,0.2656]
[1717200471439,0.643,3767.4,3766.6,2.65488]
[1717200471587,0.643,3767.2,3766.6,3.293368]
[1717200471786,0.643,3767.2,3766.6,2.65488]
[1717200472408,0.643,3767.2,3766.6,2.92048]
[1717200472781,0.643,3767.0,3766.2,6.38517]
[1717200473330,0.643,3767.0,3766.3,0.2656]
[1717200473538,2.65446,3767.3,3766.2,2.65517]
[1717200474290,2.65446,3767.3,3766.2,2.920687]
[1717200474593,2.65446,3767.3,3766.3,0.2656]
[1717200477819,2.65456,3767.1,3765.8,6.38545]
[1717200478154,2.65456,3767.1,3765.8,6.65105]
[1717200478662,2.65456,3767.1,3765.8,7.316155]
[1717200481080,2.65456,3767.1,3766.2,2.92078]
[1717200481377,2.65456,3767.1,3766.3,0.2656]
[1717200483383,2.65456,3767.1,3766.2,2.65518]
[1717200483585,2.65456,3767.1,3766.3,0.2656]
[1717200484305,2.65456,3767.1,3766.2,2.65518]
[1717200484606,2.65456,3767.1,3766.3,0.2656]
[1717200486883,2.65481,3766.8,3765.8,3.586145]
[1717200487085,2.65481,3766.8,3765.8,2.92104]
[1717200487086,3.8317,3766.7,3765.8,2.92104]
[1717200488270,2.65498,3766.5,3765.5,0.2656]
[1717200491643,2.65498,3766.5,3764.8,6.8151]
[1717200491644,2.65498,3766.5,3765.6,2.65555]
[1717200491749,2.65498,3766.5,3765.7,0.265555]
[1717200491949,7.43,3766.7,3766.1,2.65523]
[1717200492204,12.24,3767.7,3766.5,4.0191]
[1717200492205,7.43,3767.2,3766.5,4.0191]
[1717200492349,7.43,3767.2,3766.6,0.40191]
[1717200492703,11.2617,3767.6,3766.6,0.66751]
[1717200494101,11.2617,3767.6,3766.6,3.32237]
[1717200494526,11.2617,3767.6,3766.6,3.05677]
[1717200494736,2.65428,3767.5,3766.7,0.707587]
[1717200495021,2.65428,3767.5,3766.2,2.65518]
[1717200495517,2.65452,3767.2,3766.2,2.65518]
[1717200495816,3.8317,3767.1,3766.3,0.2656]
[1717200496180,3.8317,3767.1,3766.2,2.65518]
[1717200496843,3.8317,3767.1,3766.3,0.2656]
[1717200497117,3.8317,3767.1,3766.2,2.65518]
[1717200497270,3.8317,3767.1,3765.7,0.265555]
[1717200497271,2.65463,3767.0,3765.7,0.265555]
[1717200497467,3.6889,3767.0,3765.7,2.65548]
[1717200497667,3.0,3766.9,3765.7,2.65548]
[1717200497868,3.0,3766.9,3765.7,2.92108]
[1717200498421,0.57410313,3766.8,3765.7,2.92108]
[1717200498575,3.0,3766.9,3765.7,2.65548]
[1717200498772,0.57410256,3766.8,3765.8,0.2656]
[1717200499084,0.57410256,3766.8,3765.7,2.65548]
[1717200499085,2.65488,3766.7,3765.7,2.65548]
[1717200499298,2.65501,3766.5,3765.3,2.65581]
[1717200499465,2.65501,3766.5,3765.4,0.667491]
[1717200499919,2.65501,3766.5,3765.5,0.2656]
[1717200501378,2.65501,3766.5,3765.4,0.2656]
[1717200503490,2.65523,3766.2,3765.4,0.2656]
[1717200507516,6.34413,3766.2,3765.3,2.65581]
[1717200507704,6.34413,3766.2,3765.4,0.2656]
[1717200510345,2.65523,3766.2,3765.5,4.1884]
[1717200511545,2.65523,3766.2,3765.5,0.2656]
[1717200521618,0.644,3766.1,3765.5,0.2656]
[1717200527171,0.57412513,3766.1,3765.5,0.2656]
[1717200527320,1.21812513,3766.1,3765.5,0.2656]
[1717200530663,0.644,3766.1,3765.5,0.2656]
[1717200530871,1.21812662,3766.1,3765.5,0.5869551]
[1717200531953,0.644,3766.1,3765.5,0.5869551]
[1717200532275,0.5741268,3766.1,3765.6,2.6556]
[1717200532567,6.34383,3766.6,3765.6,2.6556]
[1717200532568,0.644,3766.2,3765.6,2.6556]
[1717200533630,0.644,3766.2,3765.6,2.9769341]
[1717200535888,0.644,3765.8,3765.3,0.2656]
[1717200536069,3.9314,3766.2,3765.3,0.2656]
[1717200536070,0.644,3766.0,3765.3,0.2656]
[1717200539396,0.644,3766.0,3765.5,0.2656]
[1717200540261,0.644,3766.0,3765.3,0.2656]
[1717200540463,0.644,3765.8,3765.3,0.2656]
[1717200540991,0.644,3765.8,3765.2,2.65588]
[1717200541366,0.644,3765.8,3765.3,0.2656]
[1717200541666,2.65583,3765.3,3764.2,2.65659]
[1717200541884,0.644,3765.0,3764.5,3.9958]
[1717200542081,2.65583,3765.3,3764.5,3.9958]
[1717200542264,0.644,3765.1,3764.6,0.69730336]
[1717200542481,0.644,3765.1,3764.6,0.96290336]
[1717200545477,0.644,3764.9,3764.5,4.2614]
[1717200546480,2.65583,3765.3,3764.5,4.2614]
[1717200546481,0.644,3765.1,3764.5,4.2614]
[1717200548604,0.644,3765.1,3764.5,0.2656]
[1717200549117,0.644,3764.9,3764.4,2.92205]
[1717200550375,2.65623,3764.8,3763.9,4.2614]
[1717200550645,0.644,3764.4,3763.9,6.65258]
[1717200550941,0.644,3764.6,3764.0,0.665258]
[1717200551147,0.644,3764.6,3763.9,6.65258]
[1717200551495,0.644,3764.6,3764.0,0.2656]
[1717200555344,0.644,3764.4,3764.0,0.2656]
[1717200555554,0.644,3764.6,3764.0,0.2656]
[1717200557167,0.644,3764.2,3763.5,6.65287]
[1717200557444,0.644,3763.8,3763.5,2.65707]
[1717200558141,0.644,3763.8,3763.6,0.2656]
[1717200558343,0.644,3763.8,3763.5,2.65707]
[1717200559191,0.644,3763.8,3763.5,2.92267]
[1717200560746,0.644,3763.8,3763.1,2.65734]
[1717200560903,0.644,3763.8,3763.1,3.39004502]
[1717200561604,0.644,3763.6,3763.1,2.92294]
[1717200561944,0.644,3763.4,3763.1,2.65734]
[1717200562249,0.644,3763.4,3762.9,0.0299102]
[1717200564463,0.644,3763.4,3763.0,2.92304]
[1717200564744,11.3111,3764.2,3763.2,2.65726]
[1717200565250,7.72183742,3764.9,3763.3,2.796]
[1717200565415,8.074,3764.9,3763.9,0.644]
[1717200565615,0.644,3764.7,3764.1,2.65666]
[1717200565831,0.644,3764.5,3764.1,2.65666]
[1717200566626,7.43,3764.9,3764.1,2.92226]
[1717200566820,0.644,3764.7,3764.1,2.92226]
[1717200567427,0.644,3764.5,3764.1,2.92226]
[1717200568056,0.644,3764.5,3764.1,2.65666]
[1717200573197,0.644,3764.3,3763.8,0.2656]
[1717200574497,0.644,3764.3,3763.7,2.92253]
[1717200574795,0.644,3763.9,3763.7,2.65693]
[1717200574974,8.00442284,3764.5,3763.7,2.65693]
[1717200575174,7.43,3764.5,3763.7,2.65693]
[1717200575510,0.644,3764.3,3763.7,2.65693]
[1717200577367,8.074,3764.5,3763.8,3.9438]
[1717200579055,7.43,3764.5,3764.0,2.65674]
[1717200579251,0.644,3764.4,3764.0,2.65674]
[1717200586283,0.644,3764.4,3763.6,2.92259]
[1717200587280,0.644,3764.2,3763.6,2.65699]
[1717200587508,0.644,3764.0,3763.2,2.92286]
[1717200588100,0.644,3763.8,3763.2,2.65726]
[1717200588265,0.644,3763.6,3763.2,2.92286]
[1717200588468,0.644,3763.6,3763.2,2.65726]
[1717200589963,0.644,3763.6,3763.2,2.92286]
[1717200590191,0.644,3763.6,3763.2,2.65726]
[1717200590985,3.8824,3763.7,3763.2,2.65726]
[1717200593650,3.8824,3763.7,3762.9,0.0299102]
[1717200593651,0.644,3763.3,3762.9,0.0299102]
[1717200594492,0.644,3763.5,3762.9,0.0299102]
[1717200600253,3.8824,3763.7,3762.9,2.9529902]
[1717200600409,0.644,3763.6,3762.9,2.9529902]
[1717200601630,0.644,3763.4,3762.9,2.9529902]
[1717200602415,0.644,3763.4,3762.9,2.6873902]
[1717200604141,0.57456542,3763.7,3762.9,2.6873902]
[1717200604347,0.644,3763.4,3762.9,2.6873902]
[1717200605350,0.5745676,3763.7,3763.2,3.30126]
[1717200605530,7.43,3763.8,3763.6,4.0782]
[1717200606542,7.43,3763.8,3763.7,2.65695]
[1717200606702,7.43,3764.3,3763.7,3.394865]
[1717200606906,7.43,3764.3,3763.7,2.65695]
[1717200607323,8.074,3764.3,3763.7,2.65695]
[1717200607935,7.43,3764.3,3763.7,2.65695]
[1717200608119,7.43,3764.3,3762.9,2.8259102]
[1717200608120,7.43,3764.3,3763.9,2.6568]
[1717200608319,7.43,3764.3,3764.1,2.92227]
[1717200608853,7.43,3764.3,3764.1,2.65667]
[1717200609963,7.43,3764.3,3764.1,2.92227]
[1717200611625,7.43,3764.3,3764.1,2.65667]
[1717200611975,0.644,3764.5,3764.1,2.65667]
[1717200612120,7.43,3764.9,3764.1,2.65667]
[1717200612326,8.074,3764.9,3764.1,2.65667]
[1717200615443,7.43,3764.9,3764.2,3.8126]
[1717200615662,8.074,3764.9,3764.2,3.8126]
[1717200617870,0.644,3764.9,3764.2,3.8126]
[1717200618172,2.656,3765.1,3764.2,4.550487]
[1717200618473,0.644,3764.9,3764.2,3.8126]
[1717200618820,0.644,3764.9,3764.1,2.92227]
[1717200619221,0.644,3764.7,3764.1,2.92227]
[1717200619686,2.656,3765.1,3764.1,2.92227]
[1717200619822,0.644,3764.8,3764.1,2.92227]
[1717200621991,0.644,3764.6,3764.1,2.92227]
[1717200622479,0.644,3764.8,3764.1,2.92227]
[1717200623077,0.644,3764.6,3764.1,2.92227]
[1717200623390,0.644,3764.8,3764.1,2.92227]
[1717200625744,0.644,3764.6,3764.1,2.65667]
[1717200627864,0.644,3764.6,3763.9,3.8252]
[1717200628066,0.644,3764.1,3763.7,2.65692]
[1717200629372,0.644,3764.1,3763.3,3.8252]
[1717200629573,0.644,3763.9,3763.3,6.48239]
[1717200629946,0.644,3763.9,3763.3,6.74799]
[1717200637844,13.92624,3764.6,3763.6,2.65696]
[1717200638045,4.21844876,3764.5,3763.7,3.7882]
[1717200638299,3.644,3764.5,3763.7,3.7882]
[1717200638592,7.43,3764.6,3763.8,3.365786]
[1717200638794,7.43,3764.6,3763.8,4.009786]
[1717200638964,8.074,3764.6,3763.9,0.2656]
[1717200642467,10.08633,3764.6,3763.7,4.0538]
[1717200642666,0.644,3764.3,3763.7,3.7882]
[1717200644770,0.644,3764.3,3763.4,2.65713]
[1717200644771,0.644,3764.1,3763.4,2.92273]
[1717200660374,4.4839,3764.3,3763.4,3.658223]
[1717200661481,4.4839,3764.3,3763.7,2.65694]
[1717200661706,7.43,3764.6,3764.0,2.65672]
[1717200666367,7.43,3764.6,3764.4,4.0501]
[1717200666548,7.43,3764.6,3764.5,0.46941]
[1717200666761,0.644,3765.1,3764.5,0.46941]
[1717200667083,1.21830479,3765.1,3764.4,4.0501]
[1717200667240,0.644,3765.1,3764.4,4.0501]
[1717200667443,7.43,3765.3,3764.4,4.0501]
[1717200667668,8.074,3765.3,3764.8,2.92173]
[1717200669082,8.074,3765.3,3764.4,6.70653]
[1717200669285,0.644,3765.1,3764.4,6.70653]
[1717200669841,7.43,3765.3,3764.4,6.70653]
[1717200670037,0.644,3765.2,3764.5,0.2656]
[1717200670243,0.644,3765.2,3764.7,0.2656]
[1717200672601,0.644,3765.3,3764.7,0.2656]
[1717200673189,0.20181932,3765.5,3764.7,0.2656]
[1717200673493,0.644,3765.3,3764.7,0.2656]
[1717200673906,7.43,3765.7,3765.1,2.65593]
[1717200674106,7.43,3765.7,3765.3,2.65579]
[1717200675018,7.43,3765.7,3765.3,6.70589]
[1717200676420,20.314,3766.2,3765.3,6.70589]
[1717200676720,0.644,3766.1,3765.3,6.70589]
[1717200677459,19.67,3766.2,3765.3,6.70589]
[1717200677460,0.644,3766.0,3765.3,6.70589]
[1717200677671,0.644,3766.0,3765.3,2.65579]
[1717200678038,0.644,3766.0,3764.7,0.7707053]
[1717200678039,0.644,3765.4,3764.5,2.65636]
[1717200678164,0.644,3765.0,3764.5,2.65636]
[1717200679114,0.644,3765.0,3764.6,0.2656]
[1717200679414,0.644,3765.0,3764.6,0.82718845]
[1717200679820,0.644,3765.2,3764.6,0.82718845]
[1717200680135,0.644,3765.2,3764.6,0.2656]
[1717200680623,3.6907,3765.3,3764.6,0.2656]
[1717200683418,3.6907,3765.3,3764.7,2.92181]
[1717200685638,3.6907,3765.3,3764.5,0.2656]
[1717200686812,3.6907,3765.3,3764.4,0.2656]
[1717200687323,3.6907,3765.3,3764.3,2.9221]
[1717200688259,0.57432119,3765.2,3764.3,2.9221]
[1717200689013,3.6907,3765.1,3764.3,2.9221]
[1717200690726,0.57433118,3765.0,3764.3,2.9221]
[1717200690963,3.6907,3765.1,3764.3,2.9221]
[1717200691122,3.6907,3765.1,3764.0,0.2656]
[1717200691123,3.23039741,3765.0,3764.0,0.2656]
[1717200691339,2.65606,3765.0,3764.0,0.2656]
[1717200691648,0.57435743,3764.9,3764.0,0.2656]
[1717200692719,0.57438047,3764.9,3764.0,0.2656]
[1717200693506,3.6907,3764.8,3764.0,0.2656]
[1717200695958,0.5743867,3764.7,3764.0,0.2656]
[1717200697163,0.5743867,3764.7,3763.9,2.92238]
[1717200697332,3.6907,3764.8,3763.9,2.92238]
[1717200701631,0.644,3764.7,3763.9,2.92238]
[1717200701830,0.644,3764.5,3763.9,2.92238]
[1717200712111,0.644,3764.0,3763.5,6.60014]
[1717200712300,0.644,3764.0,3763.5,2.65704]
[1717200713106,0.644,3764.0,3763.6,0.2659]
[1717200715865,0.644,3763.7,3763.2,3.6877]
[1717200716011,0.644,3763.9,3763.3,2.65723]
[1717200716719,0.644,3763.9,3763.4,0.2659]
[1717200716954,0.644,3763.9,3763.3,2.65723]
[1717200717865,0.644,3763.9,3763.4,0.2659]
[1717200721137,0.57447551,3764.1,3763.4,0.2659]
[1717200721472,0.57447551,3764.1,3763.4,0.9907324]
[1717200721639,0.644,3764.0,3763.4,0.9907324]
[1717200722340,0.644,3764.0,3763.5,0.2659]
[1717200723300,0.644,3764.0,3763.4,0.2659]
[1717200724253,0.644,3764.0,3763.3,2.65723]
[1717200724815,0.644,3764.0,3763.4,0.2659]
[1717200725158,0.644,3764.0,3763.3,2.65723]
[1717200726964,0.644,3764.0,3763.3,2.92313]
[1717200727809,0.644,3763.6,3762.9,6.5547802]
[1717200728112,0.644,3763.6,3763.0,0.2659]
[1717200728406,0.644,3763.6,3762.9,7.21025822]
[1717200728709,0.644,3763.6,3762.9,3.34285822]
[1717200728890,0.644,3763.6,3763.0,0.2659]
[1717200729074,0.644,3763.6,3762.9,3.34285822]
[1717200730076,0.644,3763.6,3762.9,3.60875822]
[1717200732317,0.644,3763.6,3762.9,2.9532802]
[1717200733714,3.2314984,3763.7,3762.9,0.0299102]
[1717200734093,0.644,3763.1,3762.9,0.0299102]
[1717200735469,3.8924,3763.5,3762.9,0.0299102]
[1717200735470,0.644,3763.3,3762.9,0.0299102]
[1717200740766,3.8924,3763.5,3762.9,0.0299102]
[1717200740926,0.644,3763.3,3762.9,0.0299102]
[1717200746493,2.65701,3763.7,3762.9,0.0299102]
[1717200746494,0.644,3763.7,3763.1,3.8]
[1717200747048,7.43,3763.8,3763.2,2.65727]
[1717200747383,7.43,3763.8,3763.2,2.92317]
[1717200748802,7.43,3763.8,3763.5,2.65707]
[1717200748969,7.43,3763.8,3763.6,4.065707]
[1717200749394,7.43,3763.8,3763.6,0.265707]
[1717200749574,7.43,3763.8,3763.5,2.65707]
[1717200752731,0.644,3764.1,3763.5,2.65707]
[1717200753509,0.644,3763.9,3763.5,2.65707]
[1717200755244,0.644,3763.9,3763.2,0.2659]
[1717200755537,4.617,3763.9,3763.2,0.2659]
[1717200760462,0.644,3763.7,3763.2,0.2659]
[1717200762636,0.644,3763.7,3763.1,2.92323]
[1717200767259,6.62984,3763.9,3762.9,0.0299102]
[1717200767462,0.644,3763.3,3762.9,0.0299102]
[1717200767769,4.6375,3763.3,3762.9,0.0299102]
[1717200769986,0.644,3763.3,3762.9,0.0299102]
[1717200770146,6.65054,3763.6,3762.9,0.0299102]
[1717200770147,0.644,3763.1,3762.9,0.0299102]
[1717200777381,2.65745,3763.0,3762.9,0.0299102]
[1717200780094,3.30145,3763.0,3762.9,0.0299102]
[1717200783287,7.79819965,3763.0,3762.9,0.0299102]
[1717200783474,8.34819965,3763.0,3762.9,0.0299102]
[1717200784470,11.34819965,3763.0,3762.9,0.0299102]
[1717200785321,11.34826558,3763.0,3762.9,0.0299102]
[1717200790433,3.9221,3762.4,3761.6,3.7082]
[1717200790633,0.644,3762.1,3761.6,3.7082]
[1717200791687,0.644,3761.9,3761.5,2.65847]
[1717200793446,0.644,3761.9,3761.4,3.7082]
[1717200795115,0.644,3761.9,3760.1,3.7082]
[1717200795401,7.43,3762.1,3760.7,0.2659]
[1717200795402,0.644,3761.3,3760.7,0.2659]
[1717200795550,0.644,3761.3,3760.8,3.7082]
[1717200796596,0.644,3761.3,3760.9,0.2659]
[1717200797641,7.43,3762.1,3760.9,2.9248]
[1717200797905,0.644,3761.8,3761.0,3.7566]
[1717200798078,0.644,3761.8,3761.1,3.12544]
[1717200801097,3.0,3762.0,3761.1,3.12544]
[1717200801597,3.644,3762.0,3761.2,4.0225]
[1717200801891,3.0,3762.0,3761.2,4.0225]
[1717200802098,3.644,3762.0,3761.3,0.779194]
[1717200802297,3.0,3762.0,3761.3,0.779194]
[1717200802498,7.43,3762.1,3761.6,2.65839]
[1717200802798,7.43,3762.6,3762.0,2.65816]
[1717200803096,12.24,3762.9,3762.0,2.65816]
[1717200803097,14.89755,3762.9,3762.0,6.41476]
[1717200803263,0.644,3762.6,3762.0,6.41476]
[1717200804607,14.89755,3762.9,3762.0,6.41476]
[1717200804755,15.54155,3762.9,3762.0,6.41476]
[1717200804961,12.24,3762.9,3762.0,7.386536]
[1717200805164,3.644,3762.8,3762.0,7.386536]
[1717200807054,0.644,3762.6,3762.0,6.68066]
[1717200807998,0.644,3762.6,3762.0,2.65816]
[1717200808861,3.8656,3762.7,3762.0,2.65816]
[1717200808862,0.644,3762.4,3762.0,2.65816]
[1717200809559,0.644,3762.4,3761.5,2.65851]
[1717200810401,0.644,3762.4,3761.6,0.705911]
[1717200810563,0.644,3762.4,3761.7,2.65836]
[1717200816888,0.644,3761.8,3761.2,6.41526]
[1717200817793,0.644,3762.0,3761.2,6.41526]
[1717200819744,3.30219,3762.0,3761.2,2.65866]
[1717200820244,3.9108,3761.9,3761.2,2.65866]
[1717200821317,0.644,3761.8,3761.2,2.65866]
[1717200822541,0.644,3761.8,3760.7,0.2659]
[1717200822542,0.644,3761.5,3760.7,0.2659]
[1717200823096,3.20837,3761.7,3760.7,0.2659]
[1717200823097,3.85237,3761.7,3760.7,0.2659]
[1717200825565,3.85237,3761.7,3760.7,0.9099]
[1717200827151,3.9108,3761.6,3760.7,0.9099]
[1717200827366,0.644,3761.5,3760.6,2.65912]
[1717200827654,0.644,3761.5,3760.7,0.2659]
[1717200827808,3.9108,3761.4,3760.7,0.2659]
[1717200828004,2.65837,3761.7,3760.8,2.65898]
[1717200828211,2.65837,3761.7,3760.8,4.008918]
[1717200828411,2.65837,3761.7,3760.8,3.56888]
[1717200829285,11.3408,3761.8,3761.0,0.644]
[1717200830378,11.3408,3761.8,3760.8,2.92488]
[1717200830527,11.3408,3761.8,3761.0,2.65885]
[1717200831865,0.644,3761.7,3761.0,2.65885]
[1717200832240,3.30238,3761.7,3760.8,0.2659]
[1717200832441,3.30238,3761.7,3760.9,2.65892]
[1717200833177,0.644,3761.7,3760.9,2.65892]
[1717200836401,0.644,3761.7,3761.2,2.65869]
[1717200836605,7.43,3761.8,3761.2,2.65869]
[1717200840597,0.644,3761.9,3761.2,2.65869]
[1717200840795,4.21883554,3761.9,3761.2,2.65869]
[1717200841044,3.644,3761.9,3761.2,2.65869]
[1717200841203,0.57484337,3761.8,3761.2,2.65869]
[1717200841403,0.57484337,3761.8,3760.8,3.56885]
[1717200841852,3.644,3761.9,3760.8,3.56885]
[1717200841997,0.57484977,3761.8,3760.8,3.56885]
[1717200842843,0.57484506,3761.8,3760.8,3.56885]
[1717200844924,3.23318506,3761.8,3760.8,2.92485]
[1717200845258,0.57484506,3761.7,3760.8,2.92485]
[1717200845570,3.6882,3761.5,3760.8,2.65895]
[1717200846307,0.57486698,3761.4,3760.8,2.65895]
[1717200846513,0.57486698,3761.4,3760.8,2.92485]
[1717200847040,3.6882,3761.5,3760.8,2.92485]
[1717200847444,0.57486309,3761.4,3760.8,2.92485]
[1717200848719,0.57486411,3761.4,3760.8,2.92485]
[1717200850265,0.57487495,3761.4,3760.8,2.92485]
[1717200851661,3.6882,3761.2,3759.8,3.6077]
[1717200851961,0.57487495,3761.1,3760.3,3.6077]
[1717200852167,7.43,3761.2,3760.5,3.6077]
[1717200852670,7.43,3761.2,3760.5,4.2517]
[1717200853365,7.43,3761.2,3760.6,2.65911]
[1717200853534,2.65856,3761.5,3760.6,2.65911]
[1717200853866,1.21888992,3761.4,3760.6,2.65911]
[1717200854179,0.644,3761.4,3760.6,2.65911]
[1717200854318,0.57489121,3761.3,3760.6,2.65911]
[1717200854638,0.57489121,3761.4,3760.6,2.65911]
[1717200856275,0.57488983,3761.4,3760.6,2.65911]
[1717200859128,3.30256,3761.5,3760.6,2.65911]
[1717200859329,0.57489051,3761.4,3760.6,2.65911]
[1717200860556,0.5748943,3761.4,3760.6,2.65911]
[1717200861440,0.57489624,3761.4,3760.6,2.65911]
[1717200862571,2.65856,3761.5,3760.6,2.65911]
[1717200862780,0.57489524,3761.4,3760.6,2.65911]
[1717200863131,0.57489373,3761.4,3760.9,2.65892]
[1717200863332,0.57489373,3761.4,3761.2,3.3027]
[1717200863531,0.57489373,3761.5,3761.4,2.65858]
[1717200863760,7.43,3762.0,3761.9,6.33133]
[1717200863938,7.43,3762.0,3761.9,6.964463]
[1717200864141,7.43,3762.0,3761.9,6.33133]
[1717200864758,7.43,3762.0,3761.9,6.59723]
[1717200867756,7.43,3762.0,3761.9,7.24123]
[1717200871479,7.43,3762.0,3761.9,6.59723]
[1717200871783,7.43,3762.0,3761.9,7.24123]
[1717200872005,7.43,3762.0,3761.9,7.965353]
[1717200872785,19.67,3762.7,3761.9,7.965353]
[1717200872964,7.43,3762.7,3761.9,7.965353]
[1717200873666,3.8966,3762.6,3761.9,2.65823]
[1717200874006,10.08766,3762.7,3762.0,3.6731]
[1717200874708,10.08766,3762.7,3762.0,4.3171]
[1717200874866,7.43,3762.7,3762.0,4.3171]
[1717200878709,0.644,3763.0,3762.0,4.3171]